[Event "Late-Titled-Tuesday-Blitz-March-19-2024"]
[Site "Chess.com"]
[Date "2024.03.19"]
[Round "10"]
[White "djano"]
[Black "rodp92"]
[Result "1-0"]
[WhiteElo "2651"]
[BlackElo "2506"]
[TimeControl "180+1"]
[EndTime "15:53:49 PDT"]
[Termination "djano won by resignation"]

1. e4 {[%clk 0:03:00.9]} 1... g6 {[%clk 0:02:59.6]} 2. Nc3 {[%clk 0:03:00.2]}
2... c6 {[%clk 0:03:00.1]} 3. Bc4 {[%clk 0:02:58.7]} 3... Bg7 {[%clk 0:02:56.2]}
4. d3 {[%clk 0:02:56.6]} 4... d6 {[%clk 0:02:55.5]} 5. Bb3 {[%clk 0:02:55.5]}
5... Nf6 {[%clk 0:02:55.7]} 6. f4 {[%clk 0:02:50.3]} 6... O-O {[%clk 0:02:54.9]}
7. Nf3 {[%clk 0:02:49.8]} 7... b5 {[%clk 0:02:47.8]} 8. O-O {[%clk 0:02:47.2]}
8... Nbd7 {[%clk 0:02:48]} 9. Qe1 {[%clk 0:02:36.2]} 9... Nc5 {[%clk 0:02:47.9]}
10. Qh4 {[%clk 0:02:31.9]} 10... a5 {[%clk 0:02:46.4]} 11. e5 {[%clk 0:02:25.8]}
11... a4 {[%clk 0:02:34.9]} 12. Ng5 {[%clk 0:02:10.7]} 12... h6 {[%clk
0:02:05.2]} 13. Nxf7 {[%clk 0:01:51.8]} 13... Rxf7 {[%clk 0:02:02.4]} 14. Bxf7+
{[%clk 0:01:50.4]} 14... Kxf7 {[%clk 0:02:01.9]} 15. exf6 {[%clk 0:01:50]} 15...
Bxf6 {[%clk 0:01:25.9]} 16. Qxh6 {[%clk 0:01:46.3]} 16... Bf5 {[%clk 0:01:10.3]}
17. Be3 {[%clk 0:01:24.9]} 17... a3 {[%clk 0:00:47]} 18. Qh7+ {[%clk 0:01:18.5]}
18... Ke8 {[%clk 0:00:47]} 19. d4 {[%clk 0:01:00.1]} 19... Ne6 {[%clk 0:00:35]}
20. Rad1 {[%clk 0:00:59]} 20... Kd7 {[%clk 0:00:29.2]} 21. d5 {[%clk 0:00:52.4]}
21... Nf8 {[%clk 0:00:16.4]} 22. dxc6+ {[%clk 0:00:50.7]} 22... Kxc6 {[%clk
0:00:16.3]} 23. Qf7 {[%clk 0:00:51]} 23... axb2 {[%clk 0:00:14.9]} 24. Qd5+
{[%clk 0:00:50.2]} 24... Kd7 {[%clk 0:00:14.3]} 25. Qxb5+ {[%clk 0:00:48]} 25...
Ke6 {[%clk 0:00:14.7]} 26. Qb3+ {[%clk 0:00:45]} 26... Kd7 {[%clk 0:00:14.1]}
27. Nd5 {[%clk 0:00:41.8]} 27... Rb8 {[%clk 0:00:13.8]} 28. Nb6+ {[%clk
0:00:42.1]} 28... Ke8 {[%clk 0:00:13.6]} 29. Rfe1 {[%clk 0:00:33.4]} 29... e6
{[%clk 0:00:13.5]} 30. Bf2 {[%clk 0:00:31.9]} 30... Kf7 {[%clk 0:00:13.9]} 31.
h3 {[%clk 0:00:31.1]} 31... Nd7 {[%clk 0:00:14.1]} 32. Rxd6 {[%clk 0:00:30.1]}
32... Rb7 {[%clk 0:00:09.5]} 33. Red1 {[%clk 0:00:28.1]} 33... Rxb6 {[%clk
0:00:08.7]} 34. Bxb6 {[%clk 0:00:27.2]} 34... Qc8 {[%clk 0:00:09.1]} 35. Rxd7+
{[%clk 0:00:27.4]} 35... Kg8 {[%clk 0:00:08.9]} 36. Rd8+ {[%clk 0:00:23.9]}
36... Bxd8 {[%clk 0:00:08.5]} 37. Rxd8+ {[%clk 0:00:24.8]} 37... Qxd8 {[%clk
0:00:06.5]} 38. Bxd8 {[%clk 0:00:25.7]} 38... Bxc2 {[%clk 0:00:04.8]} 39. Qxb2
{[%clk 0:00:25.7]} 1-0

[Event "Late-Titled-Tuesday-Blitz-March-19-2024"]
[Site "Chess.com"]
[Date "2024.03.19"]
[Round "10"]
[White "balack95"]
[Black "jodarmarlon1985"]
[Result "1-0"]
[WhiteElo "2442"]
[BlackElo "2296"]
[TimeControl "180+1"]
[EndTime "15:53:53 PDT"]
[Termination "balack95 won on time"]

1. Nf3 {[%clk 0:02:59.6]} 1... Nf6 {[%clk 0:02:59.6]} 2. b3 {[%clk 0:02:59.6]}
2... e6 {[%clk 0:02:55.5]} 3. Bb2 {[%clk 0:03:00.5]} 3... Be7 {[%clk 0:02:56]}
4. g3 {[%clk 0:03:00.6]} 4... O-O {[%clk 0:02:55.2]} 5. Bg2 {[%clk 0:03:01.5]}
5... d5 {[%clk 0:02:55.4]} 6. O-O {[%clk 0:03:02.1]} 6... c5 {[%clk 0:02:55.5]}
7. d3 {[%clk 0:03:00.8]} 7... Nc6 {[%clk 0:02:55.6]} 8. Nbd2 {[%clk 0:03:01.4]}
8... b6 {[%clk 0:02:55.4]} 9. e4 {[%clk 0:03:01.9]} 9... Bb7 {[%clk 0:02:55.5]}
10. exd5 {[%clk 0:02:58.9]} 10... exd5 {[%clk 0:02:55.1]} 11. Re1 {[%clk
0:02:58.4]} 11... Re8 {[%clk 0:02:54.7]} 12. a4 {[%clk 0:02:56.9]} 12... Qd7
{[%clk 0:02:29.4]} 13. Ne5 {[%clk 0:02:52.9]} 13... Nxe5 {[%clk 0:02:28.9]} 14.
Bxe5 {[%clk 0:02:52.8]} 14... Rac8 {[%clk 0:01:32.4]} 15. d4 {[%clk 0:02:42.5]}
15... cxd4 {[%clk 0:01:26.9]} 16. Bxd4 {[%clk 0:02:41.6]} 16... Qc7 {[%clk
0:01:16.7]} 17. c3 {[%clk 0:02:39.3]} 17... Bd6 {[%clk 0:01:06.6]} 18. Bxf6
{[%clk 0:02:32.2]} 18... Rxe1+ {[%clk 0:01:04.3]} 19. Qxe1 {[%clk 0:02:31.4]}
19... gxf6 {[%clk 0:01:05.2]} 20. Rc1 {[%clk 0:02:26.3]} 20... Be5 {[%clk
0:00:57.5]} 21. c4 {[%clk 0:02:21.8]} 21... dxc4 {[%clk 0:00:55]} 22. Rxc4
{[%clk 0:02:20.5]} 22... Qb8 {[%clk 0:00:51.4]} 23. Be4 {[%clk 0:02:07]} 23...
Rxc4 {[%clk 0:00:49.9]} 24. Nxc4 {[%clk 0:02:04.3]} 24... Bc8 {[%clk 0:00:47.9]}
25. Kg2 {[%clk 0:01:47.1]} 25... Be6 {[%clk 0:00:45]} 26. Qe2 {[%clk 0:01:36.3]}
26... Bxc4 {[%clk 0:00:30.8]} 27. Qxc4 {[%clk 0:01:31.4]} 27... Qc7 {[%clk
0:00:30.1]} 28. Qd3 {[%clk 0:01:30.2]} 28... h6 {[%clk 0:00:28.4]} 29. Bd5
{[%clk 0:01:29.2]} 29... Qd6 {[%clk 0:00:22.5]} 30. Qg6+ {[%clk 0:01:28.8]}
30... Kh8 {[%clk 0:00:13.4]} 31. Qxh6+ {[%clk 0:01:29.1]} 31... Kg8 {[%clk
0:00:13.6]} 32. Qg6+ {[%clk 0:01:29.6]} 32... Kh8 {[%clk 0:00:14]} 33. Qxf7
{[%clk 0:01:24.5]} 33... Qd8 {[%clk 0:00:14.1]} 34. Be4 {[%clk 0:01:22.9]} 34...
Qg8 {[%clk 0:00:13.2]} 35. Qxa7 {[%clk 0:01:17.4]} 35... Bd4 {[%clk 0:00:12.4]}
36. Qd7 {[%clk 0:01:15.6]} 36... Bc5 {[%clk 0:00:10.4]} 37. Qh3+ {[%clk
0:01:11.7]} 37... Kg7 {[%clk 0:00:10.3]} 38. Qg4+ {[%clk 0:01:12]} 38... Kf8
{[%clk 0:00:10.4]} 39. Qxg8+ {[%clk 0:01:11.7]} 39... Kxg8 {[%clk 0:00:11]} 40.
Bd5+ {[%clk 0:01:07]} 40... Kg7 {[%clk 0:00:11.5]} 41. f4 {[%clk 0:01:07.4]}
41... Kg6 {[%clk 0:00:10.9]} 42. Kf3 {[%clk 0:01:08]} 42... Kf5 {[%clk
0:00:10.2]} 43. g4+ {[%clk 0:01:07.4]} 43... Kg6 {[%clk 0:00:10.4]} 44. h4
{[%clk 0:01:07.7]} 44... Kg7 {[%clk 0:00:09.7]} 45. f5 {[%clk 0:01:06.5]} 45...
Bb4 {[%clk 0:00:08.9]} 46. g5 {[%clk 0:01:03.5]} 46... Bd2 {[%clk 0:00:08.3]}
47. Kg4 {[%clk 0:01:02.4]} 47... Bc1 {[%clk 0:00:08.4]} 48. Kh5 {[%clk
0:00:59.7]} 48... Bd2 {[%clk 0:00:08]} 49. Be6 {[%clk 0:00:59.7]} 49... Bc1
{[%clk 0:00:08.1]} 50. Kg4 {[%clk 0:01:00]} 50... Bd2 {[%clk 0:00:08.4]} 51. g6
{[%clk 0:01:00.3]} 51... Be1 {[%clk 0:00:06.2]} 52. h5 {[%clk 0:01:00.1]} 52...
Kh6 {[%clk 0:00:06.5]} 53. Bf7 {[%clk 0:01:00]} 53... Kg7 {[%clk 0:00:06.4]} 54.
Kf3 {[%clk 0:01:00.6]} 54... Kh6 {[%clk 0:00:06.4]} 55. Ke4 {[%clk 0:01:01.2]}
55... Bb4 {[%clk 0:00:04.5]} 56. Kd5 {[%clk 0:01:00.4]} 56... Bf8 {[%clk
0:00:04.9]} 57. Kc6 {[%clk 0:00:59.7]} 57... Bc5 {[%clk 0:00:02.9]} 58. a5
{[%clk 0:01:00.1]} 1-0

[Event "Late-Titled-Tuesday-Blitz-March-19-2024"]
[Site "Chess.com"]
[Date "2024.03.19"]
[Round "10"]
[White "expii"]
[Black "Bala-Afiada"]
[Result "1-0"]
[WhiteElo "2197"]
[BlackElo "1880"]
[TimeControl "180+1"]
[EndTime "15:53:53 PDT"]
[Termination "expii won on time"]

1. e4 {[%clk 0:03:00.9]} 1... c5 {[%clk 0:02:56.4]} 2. Nf3 {[%clk 0:02:58.8]}
2... Nc6 {[%clk 0:02:56.8]} 3. d4 {[%clk 0:02:57.3]} 3... cxd4 {[%clk
0:02:57.7]} 4. Nxd4 {[%clk 0:02:57.9]} 4... Nf6 {[%clk 0:02:58.3]} 5. Nc3 {[%clk
0:02:56.1]} 5... d6 {[%clk 0:02:58.8]} 6. g3 {[%clk 0:02:51.8]} 6... e6 {[%clk
0:02:57.8]} 7. Bg2 {[%clk 0:02:47.4]} 7... Be7 {[%clk 0:02:49.2]} 8. O-O {[%clk
0:02:45.6]} 8... O-O {[%clk 0:02:48.5]} 9. h3 {[%clk 0:02:44.9]} 9... Qb6 {[%clk
0:02:43.4]} 10. Be3 {[%clk 0:02:38.8]} 10... Qxb2 {[%clk 0:02:40.9]} 11. Qd2
{[%clk 0:02:27.2]} 11... Nxd4 {[%clk 0:02:36.6]} 12. Bxd4 {[%clk 0:02:22.7]}
12... Qa3 {[%clk 0:02:22.4]} 13. Rab1 {[%clk 0:02:13.6]} 13... e5 {[%clk
0:02:07.3]} 14. Be3 {[%clk 0:02:11.1]} 14... b6 {[%clk 0:01:17.6]} 15. Nd5
{[%clk 0:01:53.3]} 15... Nxd5 {[%clk 0:01:15]} 16. exd5 {[%clk 0:01:44.9]} 16...
Ba6 {[%clk 0:01:05.5]} 17. Rfd1 {[%clk 0:01:33.1]} 17... Rac8 {[%clk 0:01:04.5]}
18. Qb4 {[%clk 0:01:19.7]} 18... Qxb4 {[%clk 0:01:01.9]} 19. Rxb4 {[%clk
0:01:20.6]} 19... Rxc2 {[%clk 0:00:57.1]} 20. Ra4 {[%clk 0:01:17.8]} 20... Be2
{[%clk 0:00:42.1]} 21. Rd2 {[%clk 0:01:15.3]} 21... Rxd2 {[%clk 0:00:41.8]} 22.
Bxd2 {[%clk 0:01:16.2]} 22... a5 {[%clk 0:00:38.3]} 23. Be3 {[%clk 0:01:12.4]}
23... Rb8 {[%clk 0:00:35.6]} 24. Be4 {[%clk 0:01:07.9]} 24... Bd8 {[%clk
0:00:27.7]} 25. Ra3 {[%clk 0:01:05.9]} 25... b5 {[%clk 0:00:25]} 26. Rc3 {[%clk
0:01:01.3]} 26... b4 {[%clk 0:00:14.1]} 27. Rc6 {[%clk 0:01:00.3]} 27... g6
{[%clk 0:00:08.9]} 28. Rxd6 {[%clk 0:00:48.8]} 28... a4 {[%clk 0:00:09.2]} 29.
Ba7 {[%clk 0:00:21]} 29... Rc8 {[%clk 0:00:02.9]} 30. Bb6 {[%clk 0:00:20.5]}
30... Bxb6 {[%clk 0:00:02.6]} 31. Rxb6 {[%clk 0:00:21.4]} 31... b3 {[%clk
0:00:02.9]} 32. axb3 {[%clk 0:00:19.8]} 32... axb3 {[%clk 0:00:03.8]} 33. Rxb3
{[%clk 0:00:19.7]} 33... Bc4 {[%clk 0:00:04.4]} 34. Rc3 {[%clk 0:00:18.5]} 34...
Ba6 {[%clk 0:00:03.9]} 35. Rxc8+ {[%clk 0:00:14]} 35... Bxc8 {[%clk 0:00:04.8]}
36. d6 {[%clk 0:00:14.1]} 36... Kf8 {[%clk 0:00:02.7]} 37. Bc6 {[%clk 0:00:14]}
1-0

[Event "Late-Titled-Tuesday-Blitz-March-19-2024"]
[Site "Chess.com"]
[Date "2024.03.19"]
[Round "10"]
[White "KaydenTroffChess"]
[Black "Goryachkina"]
[Result "0-1"]
[WhiteElo "2838"]
[BlackElo "2683"]
[TimeControl "180+1"]
[EndTime "15:53:55 PDT"]
[Termination "Goryachkina won by resignation"]

1. d4 {[%clk 0:03:00.9]} 1... Nf6 {[%clk 0:02:59.6]} 2. Nf3 {[%clk 0:03:01.3]}
2... d5 {[%clk 0:02:59.3]} 3. Bf4 {[%clk 0:03:01.9]} 3... e6 {[%clk 0:02:55.5]}
4. e3 {[%clk 0:03:02.4]} 4... Bd6 {[%clk 0:02:54.8]} 5. Ne5 {[%clk 0:03:02.8]}
5... O-O {[%clk 0:02:50.9]} 6. Nd2 {[%clk 0:03:02.6]} 6... c5 {[%clk 0:02:50.8]}
7. c3 {[%clk 0:03:02.7]} 7... Nc6 {[%clk 0:02:43]} 8. Bg3 {[%clk 0:03:02.9]}
8... Qc7 {[%clk 0:02:41.1]} 9. f4 {[%clk 0:03:03.2]} 9... Ne4 {[%clk 0:02:29.1]}
10. Nxe4 {[%clk 0:03:02.6]} 10... dxe4 {[%clk 0:02:29.1]} 11. Bb5 {[%clk
0:02:59.7]} 11... cxd4 {[%clk 0:02:19.5]} 12. exd4 {[%clk 0:02:57.5]} 12... f6
{[%clk 0:02:18.4]} 13. Nxc6 {[%clk 0:02:56.6]} 13... bxc6 {[%clk 0:02:17.9]} 14.
Bc4 {[%clk 0:02:56.3]} 14... Bxf4 {[%clk 0:02:17.8]} 15. Qg4 {[%clk 0:02:00.7]}
15... Bxg3+ {[%clk 0:02:10.4]} 16. hxg3 {[%clk 0:02:01.6]} 16... f5 {[%clk
0:02:06.4]} 17. Qg5 {[%clk 0:02:01]} 17... Qd8 {[%clk 0:01:30.1]} 18. Qh5 {[%clk
0:01:51.5]} 18... h6 {[%clk 0:01:29.7]} 19. Qg6 {[%clk 0:01:45.4]} 19... Qg5
{[%clk 0:01:06.6]} 20. Qxg5 {[%clk 0:01:40]} 20... hxg5 {[%clk 0:01:06.6]} 21.
Rh5 {[%clk 0:01:37.9]} 21... g6 {[%clk 0:00:59.2]} 22. Rh2 {[%clk 0:01:31.1]}
22... Kg7 {[%clk 0:00:59.2]} 23. Ke2 {[%clk 0:01:30.7]} 23... Bd7 {[%clk
0:00:57.1]} 24. a4 {[%clk 0:01:17.9]} 24... Rh8 {[%clk 0:00:46]} 25. Rxh8 {[%clk
0:01:15.8]} 25... Rxh8 {[%clk 0:00:46.9]} 26. a5 {[%clk 0:01:16]} 26... Kf6
{[%clk 0:00:41]} 27. Ra3 {[%clk 0:01:11.8]} 27... Rb8 {[%clk 0:00:40.4]} 28. b4
{[%clk 0:01:10.5]} 28... f4 {[%clk 0:00:38.3]} 29. Ra1 {[%clk 0:01:06]} 29... e5
{[%clk 0:00:33.5]} 30. Rd1 {[%clk 0:01:05.1]} 30... Bg4+ {[%clk 0:00:33.1]} 31.
Ke1 {[%clk 0:00:58.4]} 31... Bxd1 {[%clk 0:00:33.2]} 32. Kxd1 {[%clk 0:00:58.4]}
32... exd4 {[%clk 0:00:33.3]} 33. Kd2 {[%clk 0:00:58.3]} 33... e3+ {[%clk
0:00:31.9]} 34. Kd3 {[%clk 0:00:57.9]} 34... dxc3 {[%clk 0:00:31.6]} 35. Kxc3
{[%clk 0:00:58.8]} 35... Rd8 {[%clk 0:00:31.5]} 36. Be2 {[%clk 0:00:55.9]} 36...
Rd2 {[%clk 0:00:31.4]} 37. Bf3 {[%clk 0:00:56.1]} 37... Ke5 {[%clk 0:00:29.7]}
38. Bxc6 {[%clk 0:00:54.1]} 38... g4 {[%clk 0:00:26.9]} 39. gxf4+ {[%clk
0:00:50.6]} 39... Kxf4 {[%clk 0:00:26.6]} 40. b5 {[%clk 0:00:23.7]} 40... Rd6
{[%clk 0:00:20.9]} 41. Kc4 {[%clk 0:00:16.2]} 41... e2 {[%clk 0:00:20.6]} 42.
Kc5 {[%clk 0:00:17.1]} 42... Rxc6+ {[%clk 0:00:19.3]} 43. Kxc6 {[%clk 0:00:18]}
43... e1=Q {[%clk 0:00:19.4]} 44. b6 {[%clk 0:00:18.9]} 44... Qxa5 {[%clk
0:00:18.5]} 45. b7 {[%clk 0:00:18.8]} 45... Qb6+ {[%clk 0:00:18.9]} 0-1

[Event "Late-Titled-Tuesday-Blitz-March-19-2024"]
[Site "Chess.com"]
[Date "2024.03.19"]
[Round "10"]
[White "kleber2007"]
[Black "IMRosen"]
[Result "1-0"]
[WhiteElo "2490"]
[BlackElo "2607"]
[TimeControl "180+1"]
[EndTime "15:53:55 PDT"]
[Termination "kleber2007 won on time"]

1. Nf3 {[%clk 0:03:00.9]} 1... d5 {[%clk 0:02:56.4]} 2. g3 {[%clk 0:03:00.7]}
2... Nf6 {[%clk 0:02:56.5]} 3. Bg2 {[%clk 0:03:01.1]} 3... e6 {[%clk 0:02:55.8]}
4. O-O {[%clk 0:03:00.5]} 4... Be7 {[%clk 0:02:56.2]} 5. c4 {[%clk 0:03:00.4]}
5... d4 {[%clk 0:02:53.1]} 6. e3 {[%clk 0:02:59.7]} 6... c5 {[%clk 0:02:53.3]}
7. exd4 {[%clk 0:02:58.5]} 7... cxd4 {[%clk 0:02:54.2]} 8. d3 {[%clk 0:02:59]}
8... Nc6 {[%clk 0:02:54.8]} 9. Re1 {[%clk 0:02:51.9]} 9... O-O {[%clk
0:02:49.8]} 10. Ne5 {[%clk 0:02:46.6]} 10... Nxe5 {[%clk 0:02:48.8]} 11. Rxe5
{[%clk 0:02:47.5]} 11... Nd7 {[%clk 0:02:49.4]} 12. Re2 {[%clk 0:02:43.8]} 12...
e5 {[%clk 0:02:49.9]} 13. Nd2 {[%clk 0:02:34.7]} 13... a5 {[%clk 0:02:46]} 14.
a3 {[%clk 0:02:32.6]} 14... Qc7 {[%clk 0:02:38.2]} 15. Nf3 {[%clk 0:02:27.3]}
15... Bd6 {[%clk 0:02:30.7]} 16. Bd2 {[%clk 0:02:20]} 16... a4 {[%clk
0:02:30.6]} 17. Bb4 {[%clk 0:02:17.1]} 17... f6 {[%clk 0:02:26.7]} 18. Nh4
{[%clk 0:02:09.1]} 18... g6 {[%clk 0:02:04]} 19. Bd5+ {[%clk 0:01:52.9]} 19...
Kg7 {[%clk 0:02:04.3]} 20. Qe1 {[%clk 0:01:53.2]} 20... Nc5 {[%clk 0:01:51.5]}
21. Rd1 {[%clk 0:01:47.3]} 21... Bg4 {[%clk 0:01:48.1]} 22. f3 {[%clk
0:01:46.6]} 22... Bd7 {[%clk 0:01:48.7]} 23. f4 {[%clk 0:01:31.3]} 23... Bg4
{[%clk 0:01:22.8]} 24. Bf3 {[%clk 0:01:06.4]} 24... Bxf3 {[%clk 0:01:03]} 25.
Nxf3 {[%clk 0:01:06]} 25... exf4 {[%clk 0:01:03.6]} 26. Nxd4 {[%clk 0:00:59.1]}
26... fxg3 {[%clk 0:00:56.1]} 27. hxg3 {[%clk 0:00:49.2]} 27... Be5 {[%clk
0:00:41.4]} 28. Nf3 {[%clk 0:00:43.8]} 28... Rae8 {[%clk 0:00:24.6]} 29. Nxe5
{[%clk 0:00:31.8]} 29... Rxe5 {[%clk 0:00:22.1]} 30. Rxe5 {[%clk 0:00:29.3]}
30... fxe5 {[%clk 0:00:23]} 31. Qe3 {[%clk 0:00:25.6]} 31... b6 {[%clk
0:00:12.3]} 32. Bc3 {[%clk 0:00:24.4]} 32... Nd7 {[%clk 0:00:09.3]} 33. d4
{[%clk 0:00:20.7]} 33... Qxc4 {[%clk 0:00:08.3]} 34. dxe5 {[%clk 0:00:18.6]}
34... Qe6 {[%clk 0:00:07.7]} 35. Rxd7+ {[%clk 0:00:18.2]} 35... Kg8 {[%clk
0:00:01.8]} 36. Rd6 {[%clk 0:00:10.1]} 36... Qf5 {[%clk 0:00:02]} 37. Rf6 {[%clk
0:00:09.9]} 1-0

[Event "Late-Titled-Tuesday-Blitz-March-19-2024"]
[Site "Chess.com"]
[Date "2024.03.19"]
[Round "10"]
[White "Irishchessman16"]
[Black "teresin05"]
[Result "1-0"]
[WhiteElo "2537"]
[BlackElo "2258"]
[TimeControl "180+1"]
[EndTime "15:53:56 PDT"]
[Termination "Irishchessman16 won by resignation"]

1. c4 {[%clk 0:02:55.5]} 1... c5 {[%clk 0:02:51.9]} 2. Nf3 {[%clk 0:02:53.3]}
2... Nc6 {[%clk 0:02:50.3]} 3. e3 {[%clk 0:02:53.4]} 3... e6 {[%clk 0:02:44.9]}
4. d4 {[%clk 0:02:53.9]} 4... d5 {[%clk 0:02:42.5]} 5. Nc3 {[%clk 0:02:53.4]}
5... cxd4 {[%clk 0:02:40.8]} 6. exd4 {[%clk 0:02:52.9]} 6... Nf6 {[%clk
0:02:41]} 7. cxd5 {[%clk 0:02:49.4]} 7... Nxd5 {[%clk 0:02:39.5]} 8. Bd3 {[%clk
0:02:48.3]} 8... Bb4 {[%clk 0:02:38.5]} 9. Bd2 {[%clk 0:02:47.7]} 9... O-O
{[%clk 0:02:27.9]} 10. O-O {[%clk 0:02:47.6]} 10... Nxc3 {[%clk 0:02:21.3]} 11.
bxc3 {[%clk 0:02:47]} 11... Be7 {[%clk 0:02:21.8]} 12. Qe2 {[%clk 0:02:34.3]}
12... Bf6 {[%clk 0:02:16.9]} 13. Qe4 {[%clk 0:02:29.5]} 13... g6 {[%clk
0:02:16.6]} 14. h4 {[%clk 0:02:28.5]} 14... Ne7 {[%clk 0:02:10.6]} 15. Bg5
{[%clk 0:02:25.5]} 15... Bg7 {[%clk 0:02:08.6]} 16. h5 {[%clk 0:02:23.9]} 16...
f6 {[%clk 0:02:05.8]} 17. Bh4 {[%clk 0:02:13.1]} 17... f5 {[%clk 0:01:56.1]} 18.
Qe2 {[%clk 0:02:11.9]} 18... b6 {[%clk 0:01:54.9]} 19. Bc4 {[%clk 0:02:09.4]}
19... Qd6 {[%clk 0:01:53.2]} 20. Bg3 {[%clk 0:02:05.7]} 20... Qc6 {[%clk
0:01:51.9]} 21. Rfe1 {[%clk 0:01:52.2]} 21... Nd5 {[%clk 0:01:51.3]} 22. Bxd5
{[%clk 0:01:49]} 22... exd5 {[%clk 0:01:49.9]} 23. Be5 {[%clk 0:01:46.4]} 23...
Re8 {[%clk 0:01:46.3]} 24. hxg6 {[%clk 0:01:45]} 24... hxg6 {[%clk 0:01:45.1]}
25. Qd2 {[%clk 0:01:44.5]} 25... Be6 {[%clk 0:01:34.1]} 26. Bxg7 {[%clk
0:01:38.9]} 26... Kxg7 {[%clk 0:01:33.9]} 27. Ne5 {[%clk 0:01:39.6]} 27... Qc7
{[%clk 0:01:27.7]} 28. Qg5 {[%clk 0:01:34.9]} 28... Bf7 {[%clk 0:01:27]} 29. Re3
{[%clk 0:01:31.8]} 29... Qe7 {[%clk 0:01:24.4]} 30. Qf4 {[%clk 0:01:29.6]} 30...
Qf6 {[%clk 0:01:20.1]} 31. Rg3 {[%clk 0:01:23.8]} 31... Rac8 {[%clk 0:01:14.7]}
32. Re1 {[%clk 0:01:17.8]} 32... Rh8 {[%clk 0:01:06.8]} 33. Ree3 {[%clk
0:01:09.1]} 33... Qh4 {[%clk 0:01:02]} 34. Qxh4 {[%clk 0:01:00.6]} 34... Rxh4
{[%clk 0:01:02.9]} 35. Rh3 {[%clk 0:00:44.8]} 35... Rch8 {[%clk 0:00:54.8]} 36.
Rxh4 {[%clk 0:00:34.9]} 36... Rxh4 {[%clk 0:00:55.7]} 37. f3 {[%clk 0:00:33.1]}
37... Rh8 {[%clk 0:00:51.6]} 38. Nc6 {[%clk 0:00:31.9]} 38... Rc8 {[%clk
0:00:43.4]} 39. Nxa7 {[%clk 0:00:27.8]} 39... Ra8 {[%clk 0:00:43.6]} 40. Re7
{[%clk 0:00:27.5]} 40... Kf6 {[%clk 0:00:42.4]} 41. Rc7 {[%clk 0:00:27.3]} 41...
Be8 {[%clk 0:00:39]} 42. Nc8 {[%clk 0:00:19.4]} 42... Rxa2 {[%clk 0:00:35.8]}
43. Nxb6 {[%clk 0:00:19.5]} 43... Bf7 {[%clk 0:00:30]} 44. Kh2 {[%clk
0:00:17.7]} 44... Kg7 {[%clk 0:00:28.4]} 45. Nxd5 {[%clk 0:00:17.1]} 45... Rc2
{[%clk 0:00:25.7]} 46. Ne3 {[%clk 0:00:16.9]} 46... Re2 {[%clk 0:00:25.4]} 47.
Nc4 {[%clk 0:00:15.9]} 47... Rc2 {[%clk 0:00:25.7]} 48. Ne5 {[%clk 0:00:15.8]}
1-0

[Event "Late-Titled-Tuesday-Blitz-March-19-2024"]
[Site "Chess.com"]
[Date "2024.03.19"]
[Round "10"]
[White "Charodej1"]
[Black "carloseduar100"]
[Result "1-0"]
[WhiteElo "2387"]
[BlackElo "2260"]
[TimeControl "180+1"]
[EndTime "15:53:57 PDT"]
[Termination "Charodej1 won on time"]

1. d4 {[%clk 0:03:00.9]} 1... d5 {[%clk 0:03:00.1]} 2. c4 {[%clk 0:03:00.5]}
2... e5 {[%clk 0:02:58.9]} 3. cxd5 {[%clk 0:02:58]} 3... Qxd5 {[%clk 0:02:58]}
4. dxe5 {[%clk 0:02:58.1]} 4... Qxd1+ {[%clk 0:02:58.9]} 5. Kxd1 {[%clk
0:02:58.2]} 5... Nc6 {[%clk 0:02:59.5]} 6. Bd2 {[%clk 0:02:41.5]} 6... Bf5
{[%clk 0:02:55.5]} 7. Na3 {[%clk 0:02:26.5]} 7... O-O-O {[%clk 0:02:49.9]} 8.
Nf3 {[%clk 0:02:20.4]} 8... f6 {[%clk 0:02:48.2]} 9. Nc4 {[%clk 0:02:07.9]} 9...
fxe5 {[%clk 0:02:34.7]} 10. Nfxe5 {[%clk 0:01:57.8]} 10... Nxe5 {[%clk
0:02:35.6]} 11. Nxe5 {[%clk 0:01:57.8]} 11... Bb4 {[%clk 0:02:36.2]} 12. Nd3
{[%clk 0:01:57.8]} 12... Bxd3 {[%clk 0:02:30.6]} 13. exd3 {[%clk 0:01:57.9]}
13... Bc5 {[%clk 0:02:30.7]} 14. Be3 {[%clk 0:01:54.8]} 14... Bd6 {[%clk
0:02:26.3]} 15. Be2 {[%clk 0:01:51.1]} 15... Nf6 {[%clk 0:02:22.5]} 16. Bf3
{[%clk 0:01:51.3]} 16... Be5 {[%clk 0:02:16]} 17. Kc2 {[%clk 0:01:47.9]} 17...
Nd5 {[%clk 0:02:12]} 18. a3 {[%clk 0:01:45.4]} 18... Nf4 {[%clk 0:02:08.4]} 19.
Rad1 {[%clk 0:01:37.3]} 19... Rhe8 {[%clk 0:01:49.8]} 20. Be4 {[%clk 0:01:34.2]}
20... g6 {[%clk 0:01:36.8]} 21. h4 {[%clk 0:01:27.2]} 21... Ne6 {[%clk
0:01:36.5]} 22. h5 {[%clk 0:01:25.4]} 22... Nd4+ {[%clk 0:01:32.6]} 23. Bxd4
{[%clk 0:01:23]} 23... Bxd4 {[%clk 0:01:30.1]} 24. hxg6 {[%clk 0:01:04.3]} 24...
hxg6 {[%clk 0:01:31]} 25. Rd2 {[%clk 0:00:59.3]} 25... g5 {[%clk 0:01:27.7]} 26.
Rh5 {[%clk 0:00:57.1]} 26... Bf6 {[%clk 0:01:27.4]} 27. Re2 {[%clk 0:00:54.3]}
27... Kb8 {[%clk 0:01:22.3]} 28. g3 {[%clk 0:00:52.5]} 28... a5 {[%clk
0:01:22.1]} 29. f4 {[%clk 0:00:51.7]} 29... gxf4 {[%clk 0:01:21.6]} 30. gxf4
{[%clk 0:00:52.6]} 30... b6 {[%clk 0:01:19.5]} 31. Rh6 {[%clk 0:00:50]} 31...
Bg7 {[%clk 0:01:15.8]} 32. Rg6 {[%clk 0:00:48.6]} 32... Bh8 {[%clk 0:01:15.8]}
33. Reg2 {[%clk 0:00:43.9]} 33... Rf8 {[%clk 0:01:11]} 34. f5 {[%clk 0:00:43.5]}
34... Be5 {[%clk 0:01:06.5]} 35. Re6 {[%clk 0:00:42.3]} 35... Bd4 {[%clk
0:00:56.6]} 36. b4 {[%clk 0:00:40.6]} 36... axb4 {[%clk 0:00:56.3]} 37. axb4
{[%clk 0:00:41.5]} 37... Rde8 {[%clk 0:00:56.7]} 38. Kb3 {[%clk 0:00:39.5]}
38... Rd8 {[%clk 0:00:39]} 39. Ra2 {[%clk 0:00:38.6]} 39... c5 {[%clk
0:00:19.5]} 40. Re7 {[%clk 0:00:34.7]} 40... c4+ {[%clk 0:00:08.3]} 41. dxc4
{[%clk 0:00:27.9]} 1-0